Cogmind - Beta 17.1 @@@ ROGUE MODE // 2026.09.23 @ 05:39:56 Player: MrFartsburg Result: Destroyed by L-31 Rogue with Katana Performance ------------- Evolutions (2) 1000 Regions Visited (3) 600 Robots Destroyed (16) 80 Value Destroyed (383) 383 Prototype IDs (0) 0 Alien Tech Used (0) 0 Bonus (0) 0 TOTAL SCORE: 2063 Bonus ------- None Cogmind --------- Core Integrity 0/550 Matter 267/300 Energy 40/100 System Corruption 0% Temperature Cool (46) Movement Core (50) Location -8/Materials Parts ------- > --- POWER (2) -------- (None) > --- PROPULSION (3) --- (None) > --- UTILITY (4) ------ Trap Scanner Machine Analyzer Improved Terrain Scan Processor > --- WEAPON (2) ------- (None) > --- INVENTORY (5) ---- (None) Peak State ------------ > --- POWER ------------ Deuterium Engine Light Nuclear Core > --- PROPULSION ------- Airjet Gravmag System Gravmag System > --- UTILITY ---------- Improved Heat Sink Machine Analyzer Improved Terrain Scan Processor Power Shielding > --- WEAPON ----------- Light EM Pulse Cannon Heavy Particle Cannon > --- INVENTORY -------- Light Ion Engine Airjet Airjet Trap Scanner Rocket Launcher [Rating: 33] Favorites ----------- Power Ion Engine Engine Ion Engine Power Core Light Nuclear Core Propulsion Compact Wheel Wheel Compact Wheel Hover Unit Airjet Utility Improved Heat Sink Device Improved Heat Sink Processor Improved Terrain Scan Processor Protection Power Shielding Weapon Assault Rifle Energy Gun Gatling Laser Energy Cannon Light EM Pulse Cannon Ballistic Gun Assault Rifle Ballistic Cannon Advanced Assault Cannon Launcher Rocket Launcher Build | -11 -10 -9 -8 ------- Run | Yrd Mat Mat Mat Slots Evolved 4 | . . 2 2 Power 1 | . . 1 . Propulsion 1 | . . . 1 Utility 2 | . . 1 1 Weapon . | . . . . Parts Attached 28 | 5 2 6 15 Power 4 | 1 . 2 1 Engine 3 | 1 . 1 1 Core 1 | . . 1 . Reactor . | . . . . Propulsion 10 | 2 . 2 6 Treads . | . . . . Leg . | . . . . Wheel 2 | 2 . . . Hover 8 | . . 2 6 Flight . | . . . . Utility 5 | . 2 1 2 Device 2 | . 1 . 1 Storage . | . . . . Processor 2 | . . 1 1 Hackware . | . . . . Protection 1 | . 1 . . Artifact . | . . . . Weapon 9 | 2 . 1 6 Energy Gun 2 | . . . 2 Energy Cannon 2 | . . 1 1 Ballistic Gun 2 | 2 . . . Ballistic Cannon 1 | . . . 1 Launcher 2 | . . . 2 Special Weapon . | . . . . Impact Weapon . | . . . . Slashing Weapon . | . . . . Piercing Weapon . | . . . . Special Melee Weapon . | . . . . Unidentified Prototypes . | . . . . Parts Lost 20 | . . . 20 Power 3 | . . . 3 Propulsion 7 | . . . 7 Utility 2 | . . . 2 Weapon 8 | . . . 8 Highest Loss Streak 10 | . . . 10 To Critical Strikes . | . . . . Average Backups 1 | . 1 . 3 Power . | . 1 . . Propulsion . | . . . . Utility . | . . . . Weapon . | . . . 1 Tool/Special . | . . . . Unused Backups . | . . . . Power . | . . . . Propulsion . | . . . . Utility . | . . . . Weapon . | . . . . Tool/Special . | . . . . Average Slot Usage (%) 83 | . 80 88 82 Engine 11 | . 14 11 8 Core 4 | . . 11 5 Wheel 16 | . 28 21 . Hover 6 | . . . 19 Device 7 | . 4 11 8 Processor 6 | . . . 17 Protection 7 | . 4 11 7 Energy Gun 1 | . . . 3 Energy Cannon 3 | . . 6 6 Ballistic Gun 15 | . 28 15 1 Peak Build Rating 33 | 5 9 21 33 Average Rating 14 | 3 6 13 25 On Entrance 8 | . 5 9 21 Avg Prop Armor Cover (%) . | . . . . Naked Turns . | . . . . Heaviest Build 22 | 9 11 18 22 Greatest Support 32 | 32 32 32 25 Greatest Overweight (x) 6 | . . 1 6 Average Overweight (x) . | . . . . Largest Inventory Capacity 5 | 5 5 5 5 Average Capacity 5 | 5 5 5 5 Most Carried 5 | 1 2 5 5 Average Carried 1 | . 1 . 3 Final Capacity 5 | 5 5 5 5 Final Carried 5 | 1 2 5 . Class Distribution -------------------- 100% | Mutant Dominant Class ---------------- Mutant | -10/Materials Mutant | -9/Materials Mutant | -8/Materials Resources | -11 -10 -9 -8 ----------- Run | Yrd Mat Mat Mat Matter Collected 511 | 244 50 . 217 Remotely . | . . . . Salvage Created 428 | . 89 . 339 Parts 30 | . 5 . 25 Haulers Intercepted . | . . . . Recyclers Shooed 1 | . . . 1 Parts Field Recycled . | . . . . Retrieved Matter . | . . . . Parts Self-Destructed . | . . . . Prevented . | . . . . Parts Restored . | . . . . Kills | -11 -10 -9 -8 ------- Run | Yrd Mat Mat Mat Combat Hostiles Destroyed 10 | . 2 . 8 Guns 4 | . 2 . 2 Cannons 4 | . . . 4 AOE 2 | . . . 2 Classes Destroyed 8 | . 1 . 7 Worker 1 | . . . 1 Builder 2 | . . . 2 Recycler 1 | . . . 1 Operator 1 | . . . 1 Watcher 1 | . . . 1 Swarmer 4 | . . . 4 Grunt 5 | . 2 . 3 Sentry 1 | . . . 1 Best Kill Streak 6 | . 2 . 6 Combat Bots Only 3 | . 2 . 3 Max Kills in Single Turn 4 | . 1 . 4 Gunslinging . | . . . . Exploded 1 | . . . 1 Melee . | . . . . Uniques/NPCs Destroyed . | . . . . Combat | -11 -10 -9 -8 -------- Run | Yrd Mat Mat Mat Hostile Shots Fired 197 | . 24 11 162 Missed 47 | . 5 2 40 Hits 150 | . 19 9 122 Melee 2 | . . . 2 Projectile 148 | . 19 9 120 Critical Strikes 7 | . 1 . 6 Damage Taken 2159 | . 227 64 1868 Core 603 | . 36 7 560 Absorbed by Shields . | . . . . Redirected to Shielding 62 | . 6 . 56 Core Remaining (%) 94 | 100 85 98 . Volleys Fired 27 | . 8 . 19 Largest 2 | . 2 . 2 Hottest 131 | . 40 . 131 Shots Fired 50 | . 16 . 34 Gun 24 | . 16 . 8 Cannon 22 | . . . 22 Launcher 4 | . . . 4 Special . | . . . . Kinetic 21 | . 16 . 5 Thermal 17 | . . . 17 Explosive 4 | . . . 4 Electromagnetic 8 | . . . 8 Robot Hit Streak 5 | . 2 . 5 Robot Miss Streak 4 | . 4 . 3 Penetration Max . | . . . . Secondary Targets . | . . . . Shots Hit Robots 26 | . 7 . 19 Core Hits 24 | . 4 . 20 Critical Kills . | . . . . Critical Parts Destroyed . | . . . . Critical Strikes . | . . . . Melee Attacks . | . . . . Impact . | . . . . Slashing . | . . . . Piercing . | . . . . Sneak Attacks . | . . . . Combat Hostiles . | . . . . Follow-up Attacks . | . . . . Damage Inflicted 1130 | . 120 . 1010 Guns 286 | . 119 . 167 Cannons 321 | . . . 321 Explosions 482 | . . . 482 Melee . | . . . . Ramming 41 | . 1 . 40 Kinetic 232 | . 119 . 113 Thermal 292 | . . . 292 Explosive 482 | . . . 482 Electromagnetic 83 | . . . 83 Impact . | . . . . Slashing . | . . . . Piercing . | . . . . Highest Corruption . | . . . . Average Corruption . | . . . . Corruption Purged . | . . . . Corruption Blocked . | . . . . Overload Shots . | . . . . Overflow Damage 66 | . . . 66 Projectiles 13 | . . . 13 Explosions 53 | . . . 53 Melee . | . . . . Knockbacks 2 | . . . 2 Impact . | . . . . Kinetic 1 | . . . 1 Secondary 1 | . . . 1 Self-Inflicted Damage 78 | . . . 78 Shots 2 | . . . 2 Rammed 6 | . 2 . 4 Targets Rammed 6 | . 2 . 4 Kicked . | . . . . Crushed . | . . . . Highest Temperature 299 | . 20 . 299 Average Temperature 84 | . 9 . 92 Received Heat Transfer 840 | . 147 . 693 Siege Activations . | . . . . Martial Activations . | . . . . Shielding Activations . | . . . . Robots Disrupted . | . . . . Combat Hostiles . | . . . . Robots Corrupted . | . . . . Combat Hostiles . | . . . . Parts Fried . | . . . . Impact Corruptions . | . . . . Robots Melted . | . . . . Combat Hostiles . | . . . . Parts Melted . | . . . . Heat Transferred 560 | . . . 560 Parts Sabotaged . | . . . . Parts Stolen . | . . . . Parts Stripped . | . . . . Power Chain Reactions . | . . . . Alert | -11 -10 -9 -8 ------- Run | Yrd Mat Mat Mat Maximum Alert Level 1 | . . . 1 Low Security (%) 99 | 100 100 100 98 Level 1 . | . . . 1 Level 2 . | . . . . Level 3 . | . . . . Level 4 . | . . . . Level 5 . | . . . . High Security . | . . . . Max Security . | . . . . Peak Influence 217 | . 50 . 217 Initial . | . . . . Average 33 | . 8 . 96 Influence Increases 515 | . 50 . 465 Destroy 0b10 Robot/C 200 | . 40 . 160 Destroy 0b10 Robot/NC 30 | . . . 30 Destroy Leader 52 | . 10 . 42 Successful Hack 4 | . . . 4 Disable Machine 15 | . . . 15 Destroy Structure 34 | . . . 34 Partial Spotted 15 | . . . 15 Lose Combat Pursuer 165 | . . . 165 Influence Decreases 334 | . 50 . 284 Time Decay 144 | . 50 . 94 Lost Part 190 | . . . 190 Squads Dispatched 7 | . 1 . 6 Investigation 2 | . 1 . 1 Extermination . | . . . . Reinforcement 5 | . . . 5 Assault . | . . . . Garrison . | . . . . Intercept . | . . . . Searches Triggered . | . . . . Construction Impeded 1 | . . . 1 Haulers Reinforced . | . . . . Active Scanning Responses . | . . . . Cargo Convoy Interrupts . | . . . . Stealth | -11 -10 -9 -8 --------- Run | Yrd Mat Mat Mat Distress Signals 4 | . 1 . 3 Communications Jammed . | . . . . Distress Signals . | . . . . Times Spotted 42 | . 6 3 33 Peak Tracking Total 15 | . 3 3 15 Tactical Retreats 4 | . . . 4 Traps | -11 -10 -9 -8 ------- Run | Yrd Mat Mat Mat Traps Triggered 1 | . . . 1 Indirectly . | . . . . Trap Hack Attempts . | . . . . Triggered . | . . . . Disarmed . | . . . . Reprogrammed . | . . . . Reused . | . . . . Traps Extracted . | . . . . Installed . | . . . . Triggered . | . . . . Machines | -11 -10 -9 -8 ---------- Run | Yrd Mat Mat Mat Machines Disabled 1 | . . . 1 Max in Single Turn 1 | . . . 1 Machines Repaired . | . . . . Machines Dismantled . | . . . . Machines Sabotaged . | . . . . Overloaded Fab Kills . | . . . . Hacking | -11 -10 -9 -8 --------- Run | Yrd Mat Mat Mat Machines Accessed 4 | . 1 1 2 Terminals 3 | . 1 . 2 Fabricators . | . . . . Repair Stations . | . . . . Recycling Units 1 | . . 1 . Scanalyzers . | . . . . Garrison Access . | . . . . Total Hacks 13 | . 3 2 8 Successful 7 | . . 2 5 Failed 5 | . 3 . 2 Catastrophic . | . . . . Database Lockouts 1 | . . . 1 Manual . | . . . . Terminals 11 | . 3 . 8 Fabricators . | . . . . Repair Stations . | . . . . Recycling Units 2 | . . 2 . Scanalyzers . | . . . . Garrison Access . | . . . . Terminal Hacks 5 | . . . 5 Record 5 | . . . 5 Fabricator Hacks . | . . . . Repair Station Hacks . | . . . . Recycling Unit Hacks 2 | . . 2 . Recycle Component 1 | . . 1 . Process 1 | . . 1 . Scanalyzer . | . . . . Garrison Access Hacks . | . . . . Unauthorized Hacks . | . . . . Terminals . | . . . . Fabricators . | . . . . Repair Stations . | . . . . Recycling Units . | . . . . Scanalyzers . | . . . . Garrison Access . | . . . . Data Cores Recovered . | . . . . Used . | . . . . Hacking Detections 3 | . 1 . 2 Full Trace Events 1 | . 1 . . Feedback Events . | . . . . Feedback Blocked . | . . . . Robot Schematics Acquired . | . . . . Robots Built . | . . . . Authchips . | . . . . Time . | . . . . Total Robot Build Rating . | . . . . Part Schematics Acquired . | . . . . Parts Built . | . . . . Authchips . | . . . . Time . | . . . . Total Part Build Rating . | . . . . Part Studies Acquired . | . . . . Parts Repaired . | . . . . Time . | . . . . Parts Recycled 1 | . . 1 . Recycled Matter . | . . . . Retrieved Matter . | . . . . Retrieved Components . | . . . . Parts Scanalyzed . | . . . . Part Schematics Acquired . | . . . . Parts Damaged . | . . . . Bothacking | -11 -10 -9 -8 ------------ Run | Yrd Mat Mat Mat Used RIF Installer . | . . . . Robots Hacked . | . . . . Non-combat . | . . . . Combat . | . . . . Robot Hacks Applied . | . . . . Relay Couplers Released . | . . . . Fabnet Peak Effective % . | . . . . Robots Rewired . | . . . . Allies Hacked . | . . . . Hacks Repelled . | . . . . Allies | -11 -10 -9 -8 -------- Run | Yrd Mat Mat Mat Total Allies . | . . . . Largest Group . | . . . . Highest-Rated Group . | . . . . Highest-Rated Ally . | . . . . Total Orders . | . . . . Ally Attacks . | . . . . Total Damage . | . . . . Kills . | . . . . Allies Corrupted . | . . . . Allies Melted . | . . . . Intel | -11 -10 -9 -8 ------- Run | Yrd Mat Mat Mat Active Infowar (turns) 201 | . . . 201 Traps 5 | . . . 5 Machine Analysis 196 | . . . 196 Robot Analysis Total . | . . . . Derelict Logs Recovered . | . . . . Drone Launches . | . . . . Drone Recoveries . | . . . . Exploration | -11 -10 -9 -8 ------------- Run | Yrd Mat Mat Mat Turns Passed 717 | 45 263 180 229 Spaces Moved 650 | 39 230 169 212 Core 8 | 4 . . 4 Treads . | . . . . Legs . | . . . . Wheels 427 | 35 230 162 . Hover 215 | . . 7 208 Flight . | . . . . Fastest Speed 50 | 50 100 56 50 Average Speed 87 | 94 100 98 64 Slowest Speed 350 | 100 100 120 350 Overloaded Moves . | . . . . Propulsion Burnouts . | . . . . Robots Hopped . | . . . . Potential Cave-ins . | . . . . Cave-ins Triggered . | . . . . Exploration Rate (%) 21 | 3 27 17 40 Regions Visited 3 Branch Regions . Pre-discovered Areas . | . . . . Known Exits Taken . | . . . . Unknown Exits Taken 3 | 1 1 1 . Scrap Searched . | . . . . Spaces Dug . | . . . . Terrain Destroyed 34 | . . . 34 Melee . | . . . . Projectile 5 | . . . 5 AOE 29 | . . . 29 Terrain Rammed . | . . . . Walls Destroyed . | . . . . Machines Disabled . | . . . . Actions | -11 -10 -9 -8 --------- Run | Yrd Mat Mat Mat Total 737 | 44 246 180 267 Wait 4 | . 4 . . Move 647 | 38 229 168 212 Hop . | . . . . Pick Up 10 | 1 1 3 5 Fast Attach 18 | 5 2 4 7 Attach 12 | . . 1 11 Detach 5 | . . 2 3 Swap 4 | . . 1 3 Drop 4 | . . 1 3 Fire 27 | . 8 . 19 Melee . | . . . . Ram 6 | . 2 . 4 Kick . | . . . . Crush . | . . . . Escape Stasis . | . . . . Rewire . | . . . . Trap . | . . . . Miscellaneous . | . . . . Route ------- -11/Scrapyard -10/Materials -9/Materials -8/Materials History --------- Turn | Location | Event 26 | -11/Scrapyard | Discovered new exit (range 15) 46 | -11/Scrapyard | Entered Materials 222 | -10/Materials | Discovered new exit (range 3) 309 | -10/Materials | Entered another Materials area 309 | -9/Materials | Evolved 2 slots: Power x1, Utility x1 330 | -9/Materials | Build established: Mutant 463 | -9/Materials | Discovered new exit (range 8) 489 | -9/Materials | Entered another Materials area 489 | -8/Materials | Evolved 2 slots: Propulsion x1, Utility x1 505 | -8/Materials | Central database locked down 662 | -8/Materials | Lost 9 parts (1p5n3w) 674 | -8/Materials | Core integrity fell below 50% 713 | -8/Materials | Core integrity fell below 20% 718 | -8/Materials | Destroyed by L-31 Rogue with Katana Last Messages --------------- ALERT: Alarm triggered, dispatching investigation squad. Adv. Assault Cannon destroyed. Critical hit (Burn: +37). S-10 Pest destroyed. Gatling Laser destroyed. Critical hit (Burn: +37). Imp. Heat Sink destroyed. K-01 Serf collects debris. Gravmag System destroyed. Electrolysis Chamber disabled. Deuterium Engine destroyed. S-10 Pest destroyed. K-01 Serf collects debris. Critical hit (Burn: +37). Gatling Laser destroyed. Destroyed Gatling Laser. Imp. Grenade Launcher destroyed. Destroyed Imp. Grenade Launcher. K-01 Serf destroyed. Map ----- +----------------------------------------------------+ | ?????????????????????????????????????????????????? | | ?????????????????????????????????????????????????? | | ?????????????????????????????????????????????????? | | ?????????????????????????????????????????????????? | | ?????????????????????????????????????????????????? | | ?????????????????????????????????????????????????? | | ?????????????????????????????????????????????????? | | ?????????????????????????????????????????????????? | | ?????????????????????????????????????????????????? | | ?????????????????????????????????????????????????? | | ?????????????????????????????????????????????????? | | ????#+##+#################???????????????????????? | | ????+ #???????????????????????? | | ????# #???????????????????????? | | ????# ##########??????????????? | | ????# #??????????????? | | ????# #??????????????? | | ????# ###### "#??????????????? | | ????# #????# ##### "#??????????????? | | ????# #????# #?### g "#??????????????? | | ????# ######/### T#??????????????? | | ?#### ## # = "#??????????????? | | ##"#" % ## *# %*s "" "#??????????????? | | ## %+[ *g " "#??????????????? | | # ## ### l " #??????????????? | | ##+###########?# @ g #??????????????? | | #??????????????# #??????????????? | | #??????????????### #??????????? | | [ #????????????????# g #??????????? | | " !#????????????????# ! g #??????????? | | # "%###????????????????# ####;##### ??????????? | | # "#??????????????????# +???? ???????????????? | | # #?"????????????????# #????? ??????????????? | | # / T????????????????# #?????? #?????????????? | | # # "????????????????# #???????#?????????????? | | # # ??"""??????????# #?????????????????????? | | # #? ?"""??????????# #?????????????????????? | | # #?? ] """??????????# #?????????????????????? | | ? #?? ?????????????? #?????????????????????? | | ? #??????????????????? ??????????????????????? | | ?? ????????????????????? ??????????????????????? | | ?????????????????????????????????????????????????? | | ?????????????????????????????????????????????????? | | ?????????????????????????????????????????????????? | | ?????????????????????????????????????????????????? | | ?????????????????????????????????????????????????? | | ?????????????????????????????????????????????????? | | ?????????????????????????????????????????????????? | | ?????????????????????????????????????????????????? | | ?????????????????????????????????????????????????? | +----------------------------------------------------+ Best States ------------- Heat Dissipation 45 Energy Generation 23 Energy Capacity 335 Matter Stores 300 Matter Capacity 300 Sight Range 16 Terrain Scan Density 110 Power Shielding 33 Evasion (%) 54 Item Schematics ----------------- None Robot Schematics ------------------ None Fabricated ------------ Nothing Repaired ---------- Nothing Studied --------- None Alien Tech Used ----------------- None Achievements -------------- None Challenges ------------ None Game ------ Seed SystemRecoilFilter Manual? 0 Play Time 00:16:52 Cumulative 41.1 hours Start 2026.09.23 @ 05:20:49 End 2026.09.23 @ 05:39:56 Sessions 1 Manual Loads 0 Difficulty Rogue Special Mode None Game No. 81 Rogue 81 Adventurer 0 Explorer 0 Win Type - Total 0 Types 0/0/0/0/0/0/0/0/0/0 Lore% 13 Gallery% 25 Achievement% 17 Wizard Run 0 Options --------- Layout 1 ASCII 0 Keyboard 0 Movement Numpad Keybinds 0 Fullscreen 1 Font 32/SmallcapsGlow Map View 50x35 Zoom Use 0% Tactical HUD 0 Map Filters NONE Filters NONE Steam 1 RUN: 793b4b44-fd72-4a0e-915b-4f1a56f0af37